bitfinex/quotes_ETHUSD_20250525
["timestamp","ask_amount","ask_price","bid_price","bid_amount"]
[1748178019666,30.22185274,2512.0,2511.9,8.0]
[1748178024674,36.98873004,2512.0,2511.9,4.256]
[1748178024831,30.99045274,2512.0,2511.9,4.256]
[1748178025035,34.96245274,2512.0,2511.9,4.256]
[1748178025668,30.99045274,2512.0,2511.9,4.256]
[1748178025843,34.96245274,2512.0,2511.9,4.256]
[1748178026164,38.25869801,2512.0,2511.9,4.256]
[1748178027442,34.76245274,2512.0,2511.9,4.256]
[1748178029185,35.31245274,2512.0,2511.9,4.256]
[1748178029383,1.3091,2511.9,2511.8,12.837]
[1748178029681,1.35887317,2511.9,2511.8,12.837]
[1748178029974,1.3091,2511.9,2511.8,12.837]
[1748178030277,4.83939527,2511.9,2511.8,12.837]
[1748178030637,4.83939527,2511.9,2511.8,8.581]
[1748178034876,0.55,2511.7,2510.7,0.7705]
[1748178035076,0.55,2511.5,2511.2,4.256]
[1748178035372,1.3469,2511.3,2511.2,4.256]
[1748178035573,1.87889,2511.3,2511.2,4.256]
[1748178036767,1.32889,2511.3,2511.2,4.256]
[1748178037471,8.55,2511.7,2511.2,4.256]
[1748178037673,4.7699,2511.6,2511.2,4.256]
[1748178037891,3.973,2511.8,2511.2,5.079]
[1748178038082,30.02185274,2512.0,2511.3,8.0]
[1748178038286,30.02185274,2512.0,2511.4,0.823]
[1748178040786,33.99485274,2512.0,2511.4,0.823]
[1748178040953,33.99485274,2512.0,2511.5,4.256]
[1748178041491,30.02185274,2512.0,2511.5,4.256]
[1748178042097,30.02185274,2512.0,2511.4,0.823]
[1748178042383,30.02185274,2512.0,2511.6,4.256]
[1748178042550,30.02185274,2512.0,2510.5,6.13]
[1748178042551,0.8313,2511.8,2510.6,0.7738]
[1748178042750,4.02277543,2511.7,2510.7,4.256]
[1748178042958,4.50818297,2511.7,2510.7,4.256]
[1748178043184,4.45840754,2511.7,2510.7,4.256]
[1748178044191,4.45840754,2511.7,2510.8,0.7738]
[1748178045887,0.48540754,2511.7,2510.8,0.7738]
[1748178046059,3.973,2511.7,2510.8,0.81362537]
[1748178047590,0.8313,2511.8,2510.8,0.81362537]
[1748178047755,4.8043,2511.8,2510.8,0.7738]
[1748178047961,4.8043,2511.8,2510.8,8.7738]
[1748178049986,4.8043,2511.8,2510.9,0.8311]
[1748178052168,8.58601432,2511.8,2510.9,0.8311]
[1748178052702,0.04977495,2511.7,2510.9,0.8311]
[1748178052999,8.58601432,2511.8,2510.9,0.8311]
[1748178054475,4.61301432,2511.8,2510.9,0.8311]
[1748178057507,4.61301432,2511.8,2510.8,11.973]
[1748178057508,30.81535274,2512.0,2510.8,11.973]
[1748178057705,30.02185274,2512.0,2510.9,0.86851656]
[1748178058068,30.02185274,2512.0,2510.9,0.8287]
[1748178059106,0.04977109,2511.9,2511.0,4.256]
[1748178059305,0.04977109,2511.9,2511.1,0.8287]
[1748178059306,3.00716238,2511.9,2511.1,0.8287]
[1748178060813,3.00716238,2511.9,2511.1,8.8287]
[1748178061406,30.02185274,2512.0,2511.1,8.8287]
[1748178062607,33.99485274,2512.0,2511.1,8.8287]
[1748178065213,33.99485274,2512.0,2511.2,0.8025]
[1748178067120,30.02185274,2512.0,2511.2,0.8025]
[1748178068413,30.02185274,2512.0,2511.3,0.03981442]
[1748178068614,30.02185274,2512.0,2511.4,0.811]
[1748178068978,30.02185274,2512.0,2511.4,4.784]
[1748178069177,30.02185274,2512.0,2511.5,0.811]
[1748178069580,30.02185274,2512.0,2511.6,0.811]
[1748178069781,30.02185274,2512.0,2511.8,0.811]
[1748178074487,30.02185274,2512.0,2511.8,8.811]
[1748178076389,30.02185274,2512.0,2511.9,0.7638]
[1748178077999,30.02185274,2512.0,2511.7,9.3448]
[1748178078205,30.02185274,2512.0,2511.9,4.255]
[1748178079493,30.02185274,2512.0,2511.9,5.0188]
[1748178080193,30.02185274,2512.0,2511.9,8.9908]
[1748178081415,30.02185274,2512.0,2511.9,16.9908]
[1748178085049,30.02185274,2512.0,2511.9,8.7638]
[1748178085212,30.02185274,2512.0,2511.9,13.0188]
[1748178087456,30.02185274,2512.0,2511.9,16.9908]
[1748178091619,30.02185274,2512.0,2511.9,17.5408]
[1748178093347,30.02185274,2512.0,2511.9,17.91733435]
[1748178094658,29.66322716,2512.0,2511.9,17.91733435]
[1748178096162,29.66322716,2512.0,2511.9,23.70953435]
[1748178096163,28.73121077,2512.0,2511.9,23.70953435]
[1748178096466,26.04625773,2512.0,2511.9,18.1107979]
[1748178096653,25.41036276,2512.0,2511.9,18.1107979]
[1748178096855,24.04351227,2512.0,2511.9,18.1107979]
[1748178097565,24.04351227,2512.0,2511.9,26.6857979]
[1748178097749,23.09083115,2512.0,2511.9,26.6857979]
[1748178098462,23.09083115,2512.0,2511.9,27.03071341]
[1748178099853,23.09083115,2512.0,2511.9,27.02971341]
[1748178101735,22.50783708,2512.0,2511.9,18.45171341]
[1748178102236,22.50783708,2512.0,2511.9,14.19971341]
[1748178103360,22.50783708,2512.0,2511.9,10.22871341]
[1748178103573,22.50783708,2512.0,2511.9,12.89011246]
[1748178103574,22.26984784,2512.0,2511.9,12.89011246]
[1748178103773,22.10114371,2512.0,2511.9,12.89011246]
[1748178103976,22.10114371,2512.0,2511.9,13.3037979]
[1748178104280,22.10114371,2512.0,2511.9,13.8537979]
[1748178104476,22.09973536,2512.0,2511.9,13.8537979]
[1748178106283,20.79973536,2512.0,2511.9,13.8537979]
[1748178107555,20.79973536,2512.0,2511.9,26.6797979]
[1748178110384,20.79973536,2512.0,2511.9,13.8537979]
[1748178111164,18.85029377,2512.0,2511.9,9.3337979]
[1748178111372,2.0063159,2516.3,2515.7,15.21147164]
[1748178111607,0.40896318,2516.2,2515.1,3.969]
[1748178111807,3.919,2516.1,2515.1,3.969]
[1748178111970,3.919,2516.1,2514.9,3.969]
[1748178112165,3.919,2516.1,2514.0,0.55]
[1748178112507,0.42782696,2516.0,2514.1,4.62033199]
[1748178112709,3.969,2515.9,2514.2,3.969]
[1748178112909,3.969,2515.9,2514.1,0.65133199]
[1748178112910,4.01870222,2515.9,2514.3,3.969]
[1748178113218,0.55,2515.8,2514.3,4.37420748]
[1748178113518,0.55,2515.6,2514.4,8.0]
[1748178113669,4.519,2515.6,2514.4,8.0]
[1748178113872,4.519,2515.6,2514.3,4.37420748]
[1748178113873,0.04970594,2515.5,2514.6,8.0]
[1748178114068,0.55,2515.4,2513.5,0.63899478]
[1748178114304,4.44707059,2515.3,2514.1,0.05]
[1748178114485,0.55,2515.1,2514.1,4.019]
[1748178114683,0.88141479,2515.0,2514.1,4.019]
[1748178114940,0.88141479,2515.0,2514.1,0.05]
[1748178115088,0.88141479,2515.0,2514.1,8.05]
[1748178115285,0.55,2514.9,2514.1,8.05]
[1748178115504,0.8317,2514.8,2514.1,0.05]
[1748178116892,0.8317,2514.6,2514.1,0.05]
[1748178117287,4.99707059,2515.3,2514.1,0.05]
[1748178117288,0.8317,2514.5,2514.1,0.05]
[1748178117903,0.8317,2514.5,2514.2,4.25]
[1748178120305,0.8317,2514.5,2514.3,4.25]
[1748178124290,0.8317,2514.5,2514.4,4.351]
[1748178124494,0.8317,2514.5,2514.4,4.33306]
[1748178130302,0.7706,2515.2,2514.4,5.01439199]
[1748178131452,0.7706,2515.2,2514.4,5.054158]
[1748178131743,0.7706,2515.2,2514.4,5.01439199]
[1748178131955,0.7706,2515.2,2514.5,8.0]
[1748178132102,0.7706,2515.2,2514.6,0.7635]
[1748178132309,0.7706,2515.2,2514.8,8.0]
[1748178132730,0.7706,2515.2,2514.5,0.68133199]
[1748178133048,0.7706,2515.2,2514.7,8.0]
[1748178133250,0.7706,2515.2,2514.8,4.351]
[1748178133402,0.7706,2515.2,2514.9,8.0]
[1748178141167,0.7706,2515.2,2514.8,4.351]
[1748178141341,0.7706,2515.2,2514.6,0.39921758]
[1748178141531,0.7706,2515.2,2514.9,4.35]
[1748178142540,8.6106,2515.2,2514.9,4.35]
[1748178143368,9.47166,2515.2,2514.9,4.35]
[1748178143536,9.42166,2515.2,2514.9,4.35]
[1748178143957,9.42166,2515.2,2515.0,4.35]
[1748178144471,8.5606,2515.2,2515.0,4.35]
[1748178144837,7.79,2515.2,2515.0,4.35]
[1748178145239,7.79,2515.2,2515.1,3.968]
[1748178145438,7.79,2515.2,2514.8,8.0]
[1748178145750,7.74,2515.2,2514.9,4.35]
[1748178145933,8.514,2515.2,2514.9,4.35]
[1748178146137,7.74,2515.2,2514.9,4.35]
[1748178146362,7.74,2515.2,2515.0,4.35]
[1748178146674,8.5587,2515.2,2515.0,4.35]
[1748178149086,7.74,2515.2,2515.0,4.35]
[1748178149298,7.64,2515.2,2515.0,4.35]
[1748178154971,7.64,2515.2,2515.1,3.967]
[1748178155488,7.64,2515.2,2514.8,8.0]
[1748178155692,7.64,2515.2,2515.1,8.279]
[1748178156296,8.48512,2515.2,2514.7,6.13]
[1748178156610,8.48512,2515.2,2514.8,4.312]
[1748178156814,0.8095,2515.1,2514.8,4.312]
[1748178157175,0.8095,2515.1,2514.8,4.99333199]
[1748178157810,7.64,2515.2,2514.9,0.68133199]
[1748178159515,7.64,2515.2,2515.0,3.967]
[1748178159814,7.64,2515.2,2515.0,4.64833199]
[1748178159987,7.64,2515.2,2515.1,0.68133199]
[1748178160182,7.64,2515.2,2515.1,9.47293199]
[1748178161814,7.64,2515.2,2515.1,8.68133199]
[1748178162171,7.64,2515.2,2514.9,0.7916]
[1748178162411,7.64,2515.2,2515.0,8.279]
[1748178162586,7.64,2515.2,2515.1,8.0]
[1748178163131,7.64,2515.2,2514.9,0.7916]
[1748178163274,7.64,2515.2,2515.0,8.279]
[1748178163908,7.64,2515.2,2514.9,0.7916]
[1748178164113,7.64,2515.2,2515.1,8.0]
[1748178164677,7.64,2515.2,2515.1,8.279]
[1748178165078,7.64,2515.2,2514.9,0.68133199]
[1748178165316,7.64,2515.2,2515.1,8.279]
[1748178165517,7.64,2515.2,2515.1,16.279]
[1748178166314,8.4481,2515.2,2515.1,8.0]
[1748178166514,9.29291,2515.2,2515.1,4.312]
[1748178171215,9.29291,2515.2,2514.6,1.07483314]
[1748178171422,9.29291,2515.2,2515.1,4.312]
[1748178172200,0.8181,2515.1,2514.2,8.8245]
[1748178172534,0.929291,2515.1,2514.3,8.279]
[1748178172838,0.8181,2515.0,2514.4,8.0]
[1748178173001,0.8181,2515.0,2514.5,3.967]
[1748178173396,0.8181,2515.0,2514.7,8.0]
[1748178173820,0.8181,2514.9,2514.8,4.312]
[1748178177937,0.8181,2514.9,2514.1,8.73133199]
[1748178178144,0.8181,2514.9,2514.2,8.279]
[1748178178746,0.86781047,2514.9,2514.3,8.279]
[1748178178952,0.8181,2514.9,2514.3,4.312]
[1748178179845,0.8181,2514.9,2514.2,0.68133199]
[1748178180078,0.04971358,2514.8,2514.3,4.312]
[1748178180250,0.8123,2514.7,2514.3,4.312]
[1748178180642,0.8123,2514.7,2514.2,0.68133199]
[1748178180844,0.8123,2514.7,2514.4,4.312]
[1748178184454,0.8123,2515.1,2514.5,0.68133199]
[1748178184620,0.84523,2515.0,2514.5,0.68133199]
[1748178185013,0.7869,2514.9,2514.4,4.87724478]
[1748178185250,0.83660975,2514.9,2514.5,4.269]
[1748178185437,0.7869,2514.9,2514.5,4.269]
[1748178185825,0.7869,2514.7,2514.1,8.05]
[1748178186025,0.7869,2514.7,2514.6,4.269]
[1748178189192,0.7869,2514.7,2514.1,0.05]
[1748178189354,0.7869,2514.7,2514.2,4.269]
[1748178190667,0.7754,2514.6,2514.2,4.269]
[1748178195386,0.7754,2514.6,2514.1,0.05]
[1748178195387,0.55,2514.5,2514.1,0.05]
[1748178195592,0.8104,2514.4,2514.2,4.269]
[1748178196089,0.55,2514.3,2514.2,4.269]
[1748178196267,1.3604,2514.3,2514.2,4.269]
[1748178196584,0.55,2514.3,2514.2,4.269]
[1748178197098,1.8122,2514.3,2514.2,4.269]
[1748178197248,1.2622,2514.3,2514.2,4.269]
[1748178198492,1.31192139,2514.3,2514.2,4.269]
[1748178199058,1.2622,2514.3,2514.2,4.269]
[1748178199497,0.55,2514.2,2514.1,0.05]
[1748178199693,1.3604,2514.2,2514.1,4.32]
[1748178200194,0.8104,2514.2,2514.1,4.32]
[1748178204101,0.8104,2514.2,2514.1,0.05]
[1748178204279,0.8104,2514.2,2514.1,4.32]
[1748178204280,0.59972318,2514.2,2514.1,4.32]
[1748178204604,1.3604,2514.2,2514.1,4.32]
[1748178206533,5.3294,2514.2,2514.1,4.32]
[1748178206665,5.90752,2514.2,2514.1,4.32]
[1748178208572,5.90752,2514.2,2514.1,0.05]
[1748178208985,5.90752,2514.2,2514.1,4.321]
[1748178209386,5.90752,2514.2,2514.1,4.271]
[1748178209786,0.55,2514.1,2514.0,12.843]
[1748178210000,0.55,2513.9,2513.1,4.7225]
[1748178210269,0.55,2513.9,2513.2,4.271]
[1748178211702,0.55,2513.9,2513.1,0.7535]
[1748178211929,0.55,2513.9,2513.2,4.271]
[1748178214285,0.55,2513.9,2513.1,8.7535]
[1748178214487,0.55,2513.9,2513.2,4.259]
[1748178216619,0.53405,2513.9,2513.2,5.4665517]
[1748178216775,0.8205,2514.0,2513.3,9.35424478]
[1748178216975,0.8205,2514.0,2513.3,9.9567618]
[1748178217218,0.7949,2514.5,2513.4,0.789]
[1748178217386,0.7949,2514.5,2513.7,0.789]
[1748178218316,0.7949,2514.5,2513.7,1.9567618]
[1748178218683,0.7949,2514.5,2513.7,1.39151702]
[1748178218883,0.7949,2514.5,2513.7,0.789]
[1748178219083,1.89939,2514.5,2513.7,0.789]
[1748178219683,0.7949,2514.5,2513.7,0.789]
[1748178221727,0.7949,2514.5,2513.7,1.9567618]
[1748178228543,0.7949,2514.5,2513.8,4.258]
[1748178232722,0.7949,2514.5,2513.7,9.9567618]
[1748178232928,0.7949,2514.5,2513.8,4.258]
[1748178233946,0.7949,2514.5,2513.9,4.258]
[1748178236536,0.04972237,2514.4,2513.7,8.789]
[1748178236743,0.04972237,2514.4,2514.0,4.258]
[1748178236939,0.7949,2514.5,2514.0,4.258]
[1748178237249,0.7949,2514.5,2514.1,4.258]
[1748178242732,0.55,2514.4,2514.1,4.258]
[1748178242926,0.7853,2514.3,2513.7,8.0]
[1748178243126,0.7853,2514.3,2513.6,8.575]
[1748178243127,0.7853,2514.3,2513.8,4.258]
[1748178243543,0.83502504,2514.3,2513.9,8.0]
[1748178243942,0.83502423,2514.3,2513.9,8.0]
[1748178244641,0.7853,2514.3,2514.0,4.256]
[1748178245265,0.7853,2514.3,2513.9,8.0]
[1748178245464,0.7853,2514.3,2514.1,4.256]
[1748178247567,0.55,2514.2,2513.6,8.575]
[1748178247767,0.55,2514.2,2513.7,4.256]
[1748178248072,0.7915,2514.1,2513.7,4.256]
[1748178248369,0.7915,2514.1,2513.8,4.256]
[1748178249251,0.7915,2514.1,2513.9,4.256]
[1748178250871,8.05,2514.9,2513.9,4.256]
[1748178250872,0.8288,2514.8,2513.9,4.256]
[1748178251046,0.8288,2514.8,2513.9,4.85851702]
[1748178251235,0.48478,2514.7,2513.9,4.85851702]
[1748178252639,0.48478,2514.7,2513.9,4.256]
[1748178254879,0.8288,2514.6,2513.9,4.256]
[1748178255649,0.8288,2514.6,2513.8,8.574]
[1748178255945,0.6,2514.9,2513.9,12.256]
[1748178255946,0.8169,2514.4,2513.9,12.256]
[1748178256264,0.8169,2514.4,2514.0,4.256]
[1748178258884,0.6,2514.9,2514.1,4.256]
[1748178258885,0.824,2514.2,2514.1,4.256]
[1748178263100,0.8189,2514.5,2514.1,4.256]
[1748178263396,0.47879,2514.4,2514.1,4.256]
[1748178267482,0.8189,2514.5,2514.1,4.256]
[1748178268065,3.969,2514.7,2514.1,4.256]
[1748178268790,4.01871907,2514.7,2514.1,4.256]
[1748178269505,0.04971907,2514.7,2514.1,4.256]
[1748178270214,0.59971907,2514.7,2514.1,4.256]
[1748178270382,0.53278191,2514.6,2514.1,4.256]
[1748178272011,0.58250096,2514.6,2514.1,4.256]
[1748178273975,0.04971905,2514.6,2514.1,4.256]
[1748178277423,0.04971905,2514.6,2514.2,4.253]
[1748178277595,0.55,2514.7,2514.2,4.253]
[1748178278332,0.55,2514.7,2513.9,0.7634]
[1748178278534,0.55,2514.7,2514.3,4.253]
[1748178279034,0.55,2514.7,2514.4,4.253]
[1748178279607,0.7591,2514.5,2513.9,0.7634]
[1748178279812,0.59972388,2514.4,2514.0,4.253]
[1748178280125,0.55,2514.4,2514.0,4.253]
[1748178283647,8.0,2514.8,2514.1,4.253]
[1748178283648,1.3624,2514.2,2514.1,4.253]
[1748178284205,1.94526571,2514.2,2514.1,4.253]
[1748178284428,1.94526571,2514.2,2512.7,0.7807]
[1748178284429,0.8124,2514.1,2512.7,0.7807]
[1748178284605,0.8124,2513.9,2512.8,4.253]
[1748178284808,0.55,2513.5,2512.8,4.253]
[1748178285211,0.04974529,2513.4,2512.8,4.253]
[1748178286045,0.04974529,2513.4,2512.9,4.253]
[1748178286046,0.8247,2513.2,2512.9,4.253]
[1748178286240,0.8247,2513.2,2512.5,9.332]
[1748178286441,0.8247,2513.2,2512.6,4.253]
[1748178286806,0.87444922,2513.2,2512.6,4.253]
[1748178287202,0.55,2513.1,2512.6,4.253]
[1748178287402,0.8247,2513.0,2512.6,4.253]
[1748178287627,0.55,2512.9,2512.7,4.254]
[1748178287832,0.55,2512.9,2512.5,8.574]
[1748178288007,0.55,2512.9,2512.6,4.254]
[1748178288847,0.55,2512.9,2512.5,8.574]
[1748178289013,0.55,2512.9,2512.7,4.254]
[1748178291043,0.55,2512.9,2512.5,8.574]
[1748178291241,0.55,2512.9,2512.6,4.254]
[1748178291545,0.8132,2513.2,2512.6,4.254]
[1748178291731,0.8132,2513.4,2512.7,0.7515]
[1748178294751,0.04974454,2513.3,2512.5,9.89074478]
[1748178294945,0.04974454,2513.3,2512.8,4.255]
[1748178295850,0.8132,2513.4,2512.8,4.255]
[1748178295851,0.86294453,2513.4,2512.8,4.255]
[1748178296552,0.8132,2513.4,2512.9,0.804]
[1748178297221,0.86294428,2513.4,2512.9,0.804]
[1748178297416,0.8132,2513.4,2512.9,0.804]
[1748178297616,1.3870688,2513.4,2512.9,0.804]
[1748178298547,1.3870688,2513.4,2512.8,4.255]
[1748178298746,0.04974419,2513.3,2512.8,4.255]
[1748178298945,0.55,2513.3,2512.8,4.255]
[1748178299454,0.55,2513.3,2512.9,4.255]
[1748178304163,1.3870688,2513.4,2512.9,4.255]
[1748178304364,0.8132,2513.4,2512.9,4.255]
[1748178306427,0.59974325,2513.3,2512.9,4.255]
[1748178306840,0.7886,2513.2,2512.9,4.255]
[1748178311877,0.04974507,2513.1,2512.9,4.255]
[1748178312260,0.83834507,2513.2,2512.9,4.255]
[1748178312840,0.7886,2513.2,2512.9,4.255]
[1748178313039,0.93386,2513.1,2512.9,4.255]
[1748178313743,0.83834505,2513.2,2512.9,4.255]
[1748178314578,0.55,2513.1,2512.2,8.578]
[1748178314779,1.3209,2512.9,2512.3,5.0033]
[1748178316477,1.3209,2512.9,2512.3,4.251]
[1748178316664,0.55,2512.7,2512.3,4.251]
[1748178316851,0.87065708,2512.6,2512.3,4.251]
[1748178317259,0.55,2512.5,2512.3,4.251]
[1748178317454,0.55,2512.5,2512.2,8.578]
[1748178317687,1.42066063,2512.5,2512.4,4.252]
[1748178317849,1.3709,2512.5,2512.4,4.252]
[1748178322551,1.90519,2512.5,2512.4,4.252]
[1748178322803,1.35519,2512.5,2512.4,4.252]
[1748178323099,8.0,2513.1,2512.4,4.252]
[1748178323251,3.972,2512.9,2512.4,4.252]
[1748178325289,0.55,2512.9,2512.4,4.252]
[1748178330291,0.04975502,2512.8,2512.5,4.252]
[1748178330711,0.55,2512.9,2512.5,4.252]
[1748178330926,0.52762,2512.8,2512.5,4.252]
[1748178332521,0.04975241,2512.7,2512.6,4.252]
[1748178333058,0.55,2512.5,2512.1,0.05]
[1748178333356,0.0497616,2512.4,2512.2,4.252]
[1748178333532,1.3507,2512.3,2512.2,4.252]
[1748178333695,11.08452601,2512.3,2512.2,4.252]
[1748178333893,11.08452601,2512.3,2512.1,0.05]
[1748178334098,0.55,2512.2,2512.1,0.05]
[1748178334398,8.55,2512.2,2512.1,0.05]
[1748178334734,0.55,2512.2,2512.1,0.05]
[1748178334907,2.6834526,2512.2,2512.1,0.05]
[1748178336814,3.5068526,2512.2,2512.1,0.05]
[1748178337438,3.55662009,2512.2,2512.1,0.05]
[1748178337609,11.55662009,2512.2,2512.1,0.05]
[1748178337814,11.5068526,2512.2,2512.1,0.05]
[1748178342561,0.55,2511.9,2511.3,4.249]
[1748178342759,1.3335,2511.7,2511.3,4.249]
[1748178342967,0.55,2511.5,2511.3,4.249]
[1748178343459,4.523,2511.4,2511.3,4.249]
[1748178343624,0.55,2511.4,2511.3,4.249]
[1748178343826,8.0,2512.1,2511.3,4.249]
[1748178343827,3.973,2511.9,2511.4,0.8099]
[1748178344161,0.55,2511.8,2511.4,0.8099]
[1748178352672,0.55,2511.9,2511.4,0.8099]
[1748178352967,0.59977349,2511.9,2511.4,0.8099]
[1748178353470,0.55,2511.7,2511.5,4.25]
[1748178353772,0.0497733,2511.6,2511.4,0.8099]
[1748178353945,0.55,2511.7,2511.5,4.25]
[1748178354372,0.55,2511.7,2511.6,4.25]
[1748178355370,0.55,2511.7,2511.2,0.7936]
[1748178355598,0.55,2511.7,2511.6,4.25]
[1748178355775,0.55,2511.7,2511.4,4.25]
[1748178358091,0.45727735,2511.8,2511.5,0.8013]
[1748178358296,0.7661,2512.1,2511.5,0.8013]
[1748178358297,3.973,2511.9,2511.5,0.8013]
[1748178359080,0.55,2511.8,2511.5,0.8013]
[1748178359758,0.55,2511.8,2511.4,4.25]
[1748178359962,0.55,2511.8,2511.5,4.25]
[1748178360277,0.55,2511.6,2511.5,4.25]
[1748178360802,10.25,2512.2,2511.6,0.8013]
[1748178360999,5.03865799,2512.1,2511.6,0.8013]
[1748178361322,0.55,2512.0,2511.5,4.25]
[1748178361665,0.55,2512.0,2511.6,4.25]
[1748178361865,0.55,2511.9,2511.6,4.25]
[1748178362067,0.55,2512.0,2511.6,4.25]
[1748178362266,0.5588658,2511.9,2511.6,4.25]
[1748178366481,1.3249658,2511.9,2511.6,4.25]
[1748178367112,0.5588658,2511.9,2511.6,4.25]
[1748178367281,0.5588658,2511.9,2511.7,0.8013]
[1748178367282,0.55,2511.9,2511.7,0.8013]
[1748178369689,8.0,2512.2,2511.7,0.8013]
[1748178369690,10.25,2512.3,2511.7,0.8013]
[1748178370101,0.55,2512.2,2511.8,4.247]
[1748178371324,0.55,2512.2,2511.9,4.247]
[1748178379395,1.38816464,2512.2,2511.9,4.247]
[1748178379609,1.16381646,2512.1,2511.9,4.247]
[1748178380752,0.55,2512.0,2511.5,0.7748]
[1748178380895,0.04977368,2512.0,2511.6,4.247]
[1748178381202,0.55,2512.0,2511.6,4.247]
[1748178381927,0.55,2512.0,2511.7,4.247]
[1748178382923,0.55,2512.0,2511.8,4.247]
[1748178383710,5.13681646,2512.1,2511.8,4.247]
[1748178383711,1.11868165,2511.9,2511.8,4.247]
[1748178386642,10.25,2513.4,2511.9,0.8089]
[1748178386835,10.24225851,2513.5,2512.1,0.8089]
[1748178387160,2.0063159,2512.7,2512.3,0.8089]
[1748178387449,2.0063159,2512.7,2512.5,0.8089]
[1748178387657,2.0063159,2512.7,2512.6,13.0559]
[1748178388343,2.0063159,2512.7,2512.6,13.55101351]
[1748178390556,2.0063159,2512.7,2512.6,13.0559]
[1748178390871,7.64,2513.5,2512.7,8.8046]
[1748178391054,7.64,2513.5,2512.9,8.0]
[1748178391215,7.64,2513.5,2513.0,0.8046]
[1748178404441,7.64,2513.5,2513.1,4.242]
[1748178413274,8.4468,2513.5,2513.2,4.242]
[1748178414277,8.4468,2513.5,2512.9,11.97]
[1748178414278,9.29148,2513.5,2512.9,8.0]
[1748178414479,9.29148,2513.5,2513.3,4.242]
[1748178417161,9.84148,2513.5,2513.4,4.242]
[1748178417358,0.55,2513.4,2512.8,8.581]
[1748178417564,0.55,2513.4,2512.9,4.242]
[1748178417886,0.984148,2513.3,2512.9,4.242]
[1748178418689,9.29148,2513.5,2512.9,4.242]
[1748178419488,0.55,2513.4,2512.9,4.242]
[1748178420089,0.7822,2513.3,2513.0,4.242]
[1748178420983,0.7822,2513.3,2512.8,8.581]
[1748178421185,0.7822,2513.3,2513.1,4.242]
[1748178423292,7.64,2513.2,2513.1,4.242]
[1748178423597,8.53722,2513.2,2513.1,4.242]
[1748178427296,7.64,2513.2,2513.1,4.242]
[1748178429661,7.64,2513.2,2513.1,5.11098696]
[1748178429963,7.64,2513.2,2513.1,5.0712]
[1748178433571,7.64,2513.2,2513.1,13.0712]
[1748178436305,7.64,2513.2,2513.1,4.242]
[1748178439011,7.64,2513.2,2513.1,5.068]
[1748178439515,7.64,2513.2,2513.1,9.038]
[1748178442288,7.64,2513.2,2513.1,17.614]
[1748178443608,7.64,2513.2,2513.1,13.644]
[1748178443809,0.7563,2513.1,2512.6,4.24]
[1748178444117,0.7563,2512.9,2512.6,4.24]
[1748178445088,7.64,2512.8,2512.6,4.24]
[1748178445289,11.61,2512.8,2511.9,0.805]
[1748178445485,13.57314693,2512.8,2512.1,3.97]
[1748178445726,12.3724,2512.8,2512.2,8.0]
[1748178447934,12.3724,2512.8,2511.9,0.805]
[1748178448125,12.3724,2512.8,2512.3,4.241]
[1748178448305,12.3724,2512.8,2511.9,0.805]
[1748178448500,12.3724,2512.8,2512.0,8.211]
[1748178449132,12.3724,2512.8,2512.1,4.241]
[1748178449506,13.64938693,2512.8,2511.9,0.805]
[1748178449710,13.64938693,2512.8,2512.0,4.241]
[1748178449711,0.7901,2512.7,2512.0,4.241]
[1748178450937,7.64,2512.6,2512.1,4.241]
[1748178452117,7.64,2512.6,2512.2,8.0]
[1748178457474,7.64,2512.6,2512.3,0.7579]
[1748178461379,7.64,2512.6,2512.2,8.0]
[1748178473299,0.7686,2512.5,2512.2,8.0]
[1748178474299,0.7686,2512.5,2512.2,11.971]
[1748178475977,0.7686,2512.5,2512.3,4.241]
[1748178476375,7.64,2512.4,2512.3,4.241]
[1748178478006,0.7973,2512.3,2512.1,8.579]
[1748178478207,0.7973,2512.3,2512.2,4.241]
[1748178480403,2.01023019,2512.3,2512.2,4.241]
[1748178480781,0.7565,2512.2,2512.1,8.579]
[1748178480990,0.7565,2512.2,2512.1,12.82]
[1748178481395,0.7565,2512.2,2512.1,8.579]
[1748178481613,0.7565,2512.2,2512.1,12.82]
[1748178481819,2.11454302,2512.2,2512.1,12.82]
[1748178481974,10.11454302,2512.2,2512.1,12.82]
[1748178482180,9.75454302,2512.2,2512.1,12.82]
[1748178486803,9.75454302,2512.2,2512.1,8.579]
[1748178487122,9.75454302,2512.2,2512.1,12.82]
[1748178489708,13.72654302,2512.2,2512.1,12.82]
[1748178492027,12.3685,2512.2,2512.1,12.82]
[1748178493719,12.3685,2512.2,2512.1,12.819]
[1748178493720,12.9185,2512.2,2512.1,12.819]
[1748178494320,12.3685,2512.2,2512.1,12.819]
[1748178495822,20.3685,2512.2,2512.1,12.819]
[1748178499115,31.1685,2512.2,2512.1,12.819]